[Event "Esbjerg Efterår 2021 - Esbjergmesterskabet"]
[Site "Esbjerg, Denmark"]
[Date "2021.10.24"]
[Round "7.6"]
[White "Bønnelykke, Ole"]
[Black "Pommerencke, Lars"]
[Result "1-0"]
[TimeControl "1.-3. 20 min + 5 sek, 4.-7. 90 min + 30 sek"]
[WhiteElo "1991"]
[BlackElo "1630"]

1. e4 {[%clk 01:30:42]} {[%emt 00:00:17]} c6 {[%clk 01:30:27]} {[%emt
00:00:34]} 2. d4 {[%clk 01:31:01]} {[%emt 00:00:10]} d5 {[%clk 01:30:43]}
{[%emt 00:00:14]} 3. e5 {[%clk 01:31:25]} {[%emt 00:00:06]} Bf5 {[%clk
01:30:56]} {[%emt 00:00:16]} 4. Nc3 {[%clk 01:31:41]} {[%emt 00:00:15]} e6
{[%clk 01:31:20]} {[%emt 00:00:07]} 5. g4 {[%clk 01:32:00]} {[%emt 00:00:11]}
Bg6 {[%clk 01:31:41]} {[%emt 00:00:08]} 6. Nge2 {[%clk 01:32:20]} {[%emt
00:00:11]} h6 {[%clk 01:30:53]} {[%emt 00:01:18]} 7. Nf4 {[%clk 01:32:38]}
{[%emt 00:00:11]} Ne7 {[%clk 01:30:58]} {[%emt 00:00:25]} 8. h4 {[%clk
01:32:28]} {[%emt 00:00:40]} Bh7 {[%clk 01:30:04]} {[%emt 00:01:24]} 9. Bd3
{[%clk 01:32:32]} {[%emt 00:00:26]} Bxd3 {[%clk 01:30:01]} {[%emt 00:00:33]} 10.
Qxd3 {[%clk 01:32:53]} {[%emt 00:00:09]} Nd7 {[%clk 01:29:30]} {[%emt
00:01:02]} 11. Be3 {[%clk 01:32:11]} {[%emt 00:01:12]} Qb6 {[%clk 01:29:36]}
{[%emt 00:00:24]} 12. O-O-O {[%clk 01:30:54]} {[%emt 00:01:46]} O-O-O {[%clk
01:29:32]} {[%emt 00:00:33]} 13. Kb1 {[%clk 01:30:46]} {[%emt 00:00:39]} Kb8
{[%clk 01:29:46]} {[%emt 00:00:16]} 14. Nfe2 {[%clk 01:29:55]} {[%emt
00:01:21]} Nc8 {[%clk 01:27:00]} {[%emt 00:03:17]} 15. f4 {[%clk 01:27:50]}
{[%emt 00:02:34]} c5 {[%clk 01:27:00]} {[%emt 00:00:28]} 16. Na4 {[%clk
01:27:17]} {[%emt 00:01:05]} Qc6 {[%clk 01:27:04]} {[%emt 00:00:26]} 17. Nxc5
{[%clk 01:26:48]} {[%emt 00:00:59]} Nxc5 {[%clk 01:27:18]} {[%emt 00:00:16]} 18.
dxc5 {[%clk 01:27:05]} {[%emt 00:00:12]} Bxc5 {[%clk 01:27:29]} {[%emt
00:00:18]} 19. f5 {[%clk 01:25:34]} {[%emt 00:02:02]} Bxe3 {[%clk 01:25:37]}
{[%emt 00:02:22]} 20. Qxe3 {[%clk 01:25:49]} {[%emt 00:00:15]} Qb6 {[%clk
01:25:28]} {[%emt 00:00:39]} 21. Nd4 {[%clk 01:25:30]} {[%emt 00:00:49]} Ne7
{[%clk 01:24:31]} {[%emt 00:01:26]} 22. Rd3 {[%clk 01:23:31]} {[%emt 00:02:29]}
Nc6 {[%clk 01:23:58]} {[%emt 00:01:04]} 23. Rhd1 {[%clk 01:22:36]} {[%emt
00:01:24]} Nxd4 {[%clk 01:23:29]} {[%emt 00:01:01]} 24. Rxd4 {[%clk 01:22:35]}
{[%emt 00:00:31]} Rc8 {[%clk 01:23:47]} {[%emt 00:00:12]} 25. R1d3 {[%clk
01:17:31]} {[%emt 00:05:31]} Qd8 {[%clk 01:19:06]} {[%emt 00:05:13]} 26. c4
{[%clk 01:16:00]} {[%emt 00:02:01]} Qxh4 {[%clk 01:18:45]} {[%emt 00:00:51]} 27.
cxd5 {[%clk 01:15:11]} {[%emt 00:01:19]} exd5 {[%clk 01:18:35]} {[%emt
00:00:41]} 28. a3 {[%clk 01:10:41]} {[%emt 00:05:00]} Rhd8 {[%clk 01:09:49]}
{[%emt 00:09:12]} 29. Ka2 {[%clk 01:10:08]} {[%emt 00:01:06]} Qe7 {[%clk
01:04:59]} {[%emt 00:05:19]} 30. Rxd5 {[%clk 01:01:31]} {[%emt 00:09:08]} Rxd5
{[%clk 01:00:46]} {[%emt 00:04:44]} 31. Rxd5 {[%clk 01:01:49]} {[%emt
00:00:12]} Rd8 {[%clk 01:01:04]} {[%emt 00:00:09]} 32. Qd4 {[%clk 00:56:38]}
{[%emt 00:05:42]} Rxd5 {[%clk 01:01:12]} {[%emt 00:00:23]} 33. Qxd5 {[%clk
00:56:59]} {[%emt 00:00:09]} Kc8 {[%clk 01:01:07]} {[%emt 00:00:35]} 34. b4
{[%clk 00:51:20]} {[%emt 00:06:08]} Qd7 {[%clk 00:54:30]} {[%emt 00:07:07]} 35.
Qc4+ {[%clk 00:38:25]} {[%emt 00:13:26]} Qc7 {[%clk 00:54:23]} {[%emt
00:00:37]} 36. Qe2 {[%clk 00:38:31]} {[%emt 00:00:24]} Kd8 {[%clk 00:54:19]}
{[%emt 00:00:34]} 37. Kb2 {[%clk 00:37:56]} {[%emt 00:01:05]} a6 {[%clk
00:54:31]} {[%emt 00:00:18]} 38. Kb3 {[%clk 00:31:24]} {[%emt 00:07:02]} Ke7
{[%clk 00:53:23]} {[%emt 00:01:38]} 39. Qe3 {[%clk 00:30:42]} {[%emt 00:01:11]}
Qc6 {[%clk 00:51:18]} {[%emt 00:02:36]} 40. g5 {[%clk 00:29:00]} {[%emt
00:02:11]} hxg5 {[%clk 00:49:34]} {[%emt 00:02:15]} 41. Qxg5+ {[%clk 00:29:16]}
{[%emt 00:00:14]} Kf8 {[%clk 00:49:54]} {[%emt 00:00:10]} 42. Qd8+ {[%clk
00:24:31]} {[%emt 00:05:15]} Qe8 {[%clk 00:49:41]} {[%emt 00:00:42]} 43. Qd6+
{[%clk 00:24:18]} {[%emt 00:00:43]} Qe7 {[%clk 00:50:08]} {[%emt 00:00:03]} 44.
Qb8+ {[%clk 00:19:53]} {[%emt 00:04:54]} Qe8 {[%clk 00:39:49]} {[%emt
00:10:51]} 45. Qxb7 {[%clk 00:19:08]} {[%emt 00:01:15]} Qxe5 {[%clk 00:40:03]}
{[%emt 00:00:16]} 46. Qxa6 {[%clk 00:16:32]} {[%emt 00:03:05]} Qxf5 {[%clk
00:38:03]} {[%emt 00:02:30]} 47. Qd6+ {[%clk 00:14:25]} {[%emt 00:02:36]} Ke8
{[%clk 00:38:07]} {[%emt 00:00:27]} 48. a4 {[%clk 00:12:46]} {[%emt 00:02:09]}
Qd7 {[%clk 00:37:32]} {[%emt 00:01:04]} 49. Qe5+ {[%clk 00:12:23]} {[%emt
00:00:53]} Kf8 {[%clk 00:36:19]} {[%emt 00:01:44]} 50. b5 {[%clk 00:11:42]}
{[%emt 00:01:12]} f6 {[%clk 00:36:34]} {[%emt 00:00:16]} 51. Qc5+ {[%clk
00:11:45]} {[%emt 00:00:26]} Kf7 {[%clk 00:35:45]} {[%emt 00:01:20]} 52. b6
{[%clk 00:11:25]} {[%emt 00:00:49]} g5 {[%clk 00:35:36]} {[%emt 00:00:39]} 53.
Qb5 {[%clk 00:09:04]} {[%emt 00:02:51]} Qb7 {[%clk 00:34:08]} {[%emt 00:01:58]}
54. a5 {[%clk 00:08:42]} {[%emt 00:00:52]} g4 {[%clk 00:34:27]} {[%emt
00:00:11]} 55. Qh5+ {[%clk 00:08:31]} {[%emt 00:00:41]} Kf8 {[%emt 00:00:20]}
56. Qh8+ {[%emt 00:00:50]} 1-0

[Event "Esbjerg Efterår 2021 - Esbjergmesterskabet"]
[Site "Esbjerg, Denmark"]
[Date "2021.10.24"]
[Round "7.7"]
[White "Mortensen, Henrik"]
[Black "Jensen, Lars"]
[Result "0-1"]
[TimeControl "1.-3. 20 min + 5 sek, 4.-7. 90 min + 30 sek"]
[WhiteElo "1991"]
[BlackElo "1546"]

1. e4 {[%clk 01:30:58]} {[%emt 00:00:01]} d6 {[%clk 01:30:56]} {[%emt
00:00:04]} 2. d4 {[%clk 01:31:20]} {[%emt 00:00:08]} Nf6 {[%clk 01:31:24]}
{[%emt 00:00:03]} 3. Nc3 {[%clk 01:31:38]} {[%emt 00:00:11]} g6 {[%clk
01:31:46]} {[%emt 00:00:08]} 4. g3 {[%clk 01:32:01]} {[%emt 00:00:08]} Bg7
{[%clk 01:32:10]} {[%emt 00:00:06]} 5. Bg2 {[%clk 01:32:14]} {[%emt 00:00:16]}
O-O {[%clk 01:32:23]} {[%emt 00:00:17]} 6. Nge2 {[%clk 01:32:29]} {[%emt
00:00:15]} e5 {[%clk 01:31:42]} {[%emt 00:01:11]} 7. h3 {[%clk 01:32:33]}
{[%emt 00:00:26]} exd4 {[%clk 01:29:16]} {[%emt 00:02:56]} 8. Nxd4 {[%clk
01:31:56]} {[%emt 00:01:07]} Bd7 {[%clk 01:29:11]} {[%emt 00:00:35]} 9. O-O
{[%clk 01:26:20]} {[%emt 00:06:05]} Nc6 {[%clk 01:28:23]} {[%emt 00:01:20]} 10.
Nde2 {[%clk 01:23:06]} {[%emt 00:03:43]} Rb8 {[%clk 01:23:50]} {[%emt
00:05:03]} 11. Bg5 {[%clk 01:20:17]} {[%emt 00:03:19]} h6 {[%clk 01:23:51]}
{[%emt 00:00:29]} 12. Be3 {[%clk 01:18:48]} {[%emt 00:01:58]} a6 {[%clk
01:23:38]} {[%emt 00:00:45]} 13. Qd2 {[%clk 01:18:06]} {[%emt 00:01:12]} Kh7
{[%clk 01:23:56]} {[%emt 00:00:11]} 14. f4 {[%clk 01:14:32]} {[%emt 00:04:03]}
Re8 {[%clk 01:20:05]} {[%emt 00:04:21]} 15. Rae1 {[%clk 01:10:17]} {[%emt
00:04:46]} b5 {[%clk 01:18:27]} {[%emt 00:02:08]} 16. a3 {[%clk 01:01:49]}
{[%emt 00:08:58]} a5 {[%clk 01:17:14]} {[%emt 00:01:44]} 17. Nd4 {[%clk
00:58:49]} {[%emt 00:03:29]} b4 {[%clk 01:15:34]} {[%emt 00:02:11]} 18. Nxc6
{[%clk 00:58:24]} {[%emt 00:00:55]} Bxc6 {[%clk 01:09:32]} {[%emt 00:06:32]} 19.
axb4 {[%clk 00:50:39]} {[%emt 00:08:15]} axb4 {[%clk 01:09:59]} {[%emt
00:00:03]} 20. Nd5 {[%clk 00:50:13]} {[%emt 00:00:55]} Nxe4 {[%clk 01:08:07]}
{[%emt 00:02:21]} 21. Bxe4 {[%clk 00:49:50]} {[%emt 00:00:53]} Rxe4 {[%clk
01:08:28]} {[%emt 00:00:09]} 22. Ba7 {[%clk 00:49:35]} {[%emt 00:00:46]} Rxe1
{[%clk 01:07:33]} {[%emt 00:01:24]} 23. Rxe1 {[%clk 00:46:46]} {[%emt
00:03:19]} Rb5 {[%clk 01:01:56]} {[%emt 00:06:08]} 24. Nxb4 {[%clk 00:44:39]}
{[%emt 00:02:37]} Bd7 {[%clk 01:01:59]} {[%emt 00:00:26]} 25. h4 {[%clk
00:35:15]} {[%emt 00:09:54]} c5 {[%clk 01:00:21]} {[%emt 00:02:08]} 26. Nd5
{[%clk 00:30:21]} {[%emt 00:05:24]} Be6 {[%clk 00:49:37]} {[%emt 00:11:14]} 27.
c3 {[%clk 00:23:14]} {[%emt 00:07:37]} Qa5 {[%clk 00:45:16]} {[%emt 00:04:50]}
28. Bb6 {[%clk 00:22:06]} {[%emt 00:01:38]} Rxb6 {[%clk 00:45:36]} {[%emt
00:00:11]} 29. Nxb6 {[%clk 00:22:34]} {[%emt 00:00:02]} Qxb6 {[%clk 00:45:56]}
{[%emt 00:00:10]} 30. Rd1 {[%clk 00:22:09]} {[%emt 00:00:55]} Bf8 {[%clk
00:43:52]} {[%emt 00:02:34]} 31. Kh2 {[%clk 00:21:57]} {[%emt 00:00:41]} d5
{[%clk 00:40:54]} {[%emt 00:03:28]} 32. Qe2 {[%clk 00:21:53]} {[%emt 00:00:35]}
d4 {[%clk 00:39:42]} {[%emt 00:01:42]} 33. Rf1 {[%clk 00:20:16]} {[%emt
00:02:07]} h5 {[%clk 00:39:01]} {[%emt 00:01:09]} 34. Ra1 {[%clk 00:19:40]}
{[%emt 00:01:07]} dxc3 {[%clk 00:37:42]} {[%emt 00:01:49]} 35. bxc3 {[%clk
00:20:03]} {[%emt 00:00:08]} Bg7 {[%clk 00:37:33]} {[%emt 00:00:39]} 36. Rc1
{[%clk 00:18:48]} {[%emt 00:01:44]} Qb3 {[%clk 00:34:38]} {[%emt 00:03:24]} 37.
Qd2 {[%clk 00:18:50]} {[%emt 00:00:29]} Bf6 {[%clk 00:34:02]} {[%emt 00:01:04]}
38. Rc2 {[%clk 00:18:26]} {[%emt 00:00:55]} Bf5 {[%clk 00:33:07]} {[%emt
00:01:25]} 39. Rc1 {[%clk 00:18:26]} {[%emt 00:00:30]} Kg7 {[%clk 00:33:13]}
{[%emt 00:00:24]} 40. Kg1 {[%clk 00:18:32]} {[%emt 00:00:23]} Qc4 {[%clk
00:32:45]} {[%emt 00:00:59]} 41. Kf2 {[%clk 00:17:09]} {[%emt 00:01:53]} Be6
{[%clk 00:27:30]} {[%emt 00:05:44]} 42. Rc2 {[%clk 00:17:16]} {[%emt 00:00:23]}
Qe4 {[%clk 00:27:17]} {[%emt 00:00:44]} 43. Qe2 {[%clk 00:16:18]} {[%emt
00:01:28]} Qf5 {[%clk 00:27:27]} {[%emt 00:00:20]} 44. Ke1 {[%clk 00:15:25]}
{[%emt 00:01:23]} Qh3 {[%clk 00:25:23]} {[%emt 00:02:34]} 45. Qf2 {[%clk
00:15:30]} {[%emt 00:00:25]} Qh1+ {[%clk 00:24:57]} {[%emt 00:00:55]} 46. Kd2
{[%clk 00:15:13]} {[%emt 00:00:48]} Qd5+ {[%clk 00:24:57]} {[%emt 00:00:30]} 47.
Ke1 {[%clk 00:15:31]} {[%emt 00:00:12]} Bg4 {[%clk 00:23:46]} {[%emt 00:01:41]}
48. Kf1 {[%clk 00:14:38]} {[%emt 00:01:23]} Qc4+ {[%clk 00:16:33]} {[%emt
00:07:43]} 49. Kg1 {[%clk 00:13:39]} {[%emt 00:01:29]} Bxc3 {[%clk 00:16:42]}
{[%emt 00:00:21]} 50. Kf1 {[%emt 00:00:23]} {x} 0-1

[Event "Esbjerg Efterår 2021 - Esbjergmesterskabet"]
[Site "Esbjerg, Denmark"]
[Date "2021.10.24"]
[Round "7.8"]
[White "Dybdahl, Frank"]
[Black "Bisercic, Zlatan"]
[Result "1-0"]
[TimeControl "1.-3. 20 min + 5 sek, 4.-7. 90 min + 30 sek"]
[WhiteElo "1687"]
[BlackElo "1300"]

1. c4 {[%clk 01:31:25]} {[%emt 00:00:06]} e5 {[%clk 01:31:10]} {[%emt
00:00:18]} 2. e4 {[%clk 01:31:42]} {[%emt 00:00:13]} Nf6 {[%clk 01:29:43]}
{[%emt 00:01:57]} 3. Nc3 {[%clk 01:31:59]} {[%emt 00:00:12]} Nc6 {[%clk
01:27:54]} {[%emt 00:02:20]} 4. g3 {[%clk 01:32:04]} {[%emt 00:00:24]} Bb4
{[%clk 01:26:46]} {[%emt 00:01:39]} 5. d3 {[%clk 01:32:02]} {[%emt 00:00:32]}
d6 {[%clk 01:24:59]} {[%emt 00:02:17]} 6. Bg2 {[%clk 01:32:11]} {[%emt
00:00:21]} Bg4 {[%clk 01:19:39]} {[%emt 00:05:49]} 7. f3 {[%clk 01:29:10]}
{[%emt 00:03:31]} Bh5 {[%clk 01:19:46]} {[%emt 00:00:24]} 8. Nge2 {[%clk
01:26:59]} {[%emt 00:02:40]} Bc5 {[%clk 01:18:04]} {[%emt 00:02:13]} 9. a3
{[%clk 01:25:14]} {[%emt 00:02:15]} a5 {[%clk 01:18:06]} {[%emt 00:00:28]} 10.
Nb5 {[%clk 01:24:02]} {[%emt 00:01:41]} h6 {[%clk 01:15:48]} {[%emt 00:02:48]}
11. Nec3 {[%clk 01:22:01]} {[%emt 00:02:31]} Na7 {[%clk 01:09:16]} {[%emt
00:07:04]} 12. Nxa7 {[%clk 01:16:00]} {[%emt 00:06:31]} Bxa7 {[%clk 01:09:09]}
{[%emt 00:00:36]} 13. Bd2 {[%clk 01:06:03]} {[%emt 00:10:27]} c6 {[%clk
01:06:43]} {[%emt 00:02:56]} 14. b4 {[%clk 01:04:34]} {[%emt 00:01:59]} axb4
{[%clk 01:05:37]} {[%emt 00:01:36]} 15. axb4 {[%clk 01:04:58]} {[%emt
00:00:06]} Bd4 {[%clk 01:05:46]} {[%emt 00:00:21]} 16. Ke2 {[%clk 01:03:41]}
{[%emt 00:01:46]} O-O {[%clk 00:59:48]} {[%emt 00:06:28]} 17. Qc2 {[%clk
01:00:58]} {[%emt 00:03:14]} Qe7 {[%clk 00:54:34]} {[%emt 00:05:44]} 18. Ra4
{[%clk 00:57:58]} {[%emt 00:03:30]} Nd7 {[%clk 00:47:38]} {[%emt 00:07:26]} 19.
Rha1 {[%clk 00:56:15]} {[%emt 00:02:12]} Rxa4 {[%clk 00:45:06]} {[%emt
00:03:03]} 20. Rxa4 {[%clk 00:55:13]} {[%emt 00:01:32]} Rc8 {[%clk 00:42:03]}
{[%emt 00:03:32]} 21. Qa2 {[%clk 00:51:25]} {[%emt 00:04:18]} Kh7 {[%clk
00:38:52]} {[%emt 00:03:41]} 22. Ra5 {[%clk 00:41:19]} {[%emt 00:10:37]} Nb8
{[%clk 00:33:12]} {[%emt 00:06:10]} 23. b5 {[%clk 00:39:56]} {[%emt 00:01:53]}
cxb5 {[%clk 00:31:11]} {[%emt 00:02:31]} 24. Nd5 {[%clk 00:39:43]} {[%emt
00:00:43]} Qd7 {[%clk 00:27:06]} {[%emt 00:04:34]} 25. Rxb5 {[%clk 00:39:40]}
{[%emt 00:00:33]} Na6 {[%clk 00:24:08]} {[%emt 00:03:28]} 26. Be3 {[%clk
00:38:52]} {[%emt 00:01:18]} Rb8 {[%clk 00:19:48]} {[%emt 00:04:51]} 27. Bxd4
{[%clk 00:38:36]} {[%emt 00:00:46]} exd4 {[%clk 00:19:36]} {[%emt 00:00:40]} 28.
Nf6+ {[%clk 00:37:32]} {[%emt 00:01:35]} gxf6 {[%clk 00:19:14]} {[%emt
00:00:52]} 29. Rxh5 {[%clk 00:37:25]} {[%emt 00:00:37]} Kg6 {[%clk 00:18:03]}
{[%emt 00:01:42]} 30. Bh3 {[%clk 00:35:32]} {[%emt 00:02:23]} Qc6 {[%clk
00:16:02]} {[%emt 00:02:31]} 31. Bg4 {[%clk 00:33:47]} {[%emt 00:02:15]} b5
{[%clk 00:13:38]} {[%emt 00:02:54]} 32. Qd2 {[%clk 00:33:06]} {[%emt 00:01:11]}
Rh8 {[%clk 00:11:18]} {[%emt 00:02:50]} 33. Rxb5 {[%clk 00:32:18]} {[%emt
00:01:17]} Nc5 {[%clk 00:10:47]} {[%emt 00:01:01]} 34. Qf4 {[%clk 00:30:13]}
{[%emt 00:02:35]} Ra8 {[%clk 00:09:17]} {[%emt 00:02:01]} 35. Qd2 {[%clk
00:27:23]} {[%emt 00:03:20]} Qa6 {[%clk 00:09:24]} {[%emt 00:00:23]} 36. f4
{[%clk 00:26:06]} {[%emt 00:01:47]} Qa1 {[%clk 00:09:14]} {[%emt 00:00:39]} 37.
Rb2 {[%clk 00:21:31]} {[%emt 00:05:05]} Ra3 {[%clk 00:07:02]} {[%emt 00:02:43]}
38. Bf5+ {[%clk 00:21:24]} {[%emt 00:00:36]} Kg7 {[%clk 00:07:28]} {[%emt
00:00:04]} 39. e5 {[%clk 00:21:11]} {[%emt 00:00:43]} dxe5 {[%clk 00:06:25]}
{[%emt 00:01:34]} 40. Rc2 {[%clk 00:14:43]} {[%emt 00:06:57]} Qg1 {[%clk
00:06:12]} {[%emt 00:00:44]} 41. Kf3 {[%clk 00:13:46]} {[%emt 00:01:27]} Qf1+
{[%clk 00:03:34]} {[%emt 00:03:07]} 42. Kg4 {[%clk 00:13:10]} {[%emt 00:01:06]}
Nxd3 {[%clk 00:03:00]} {[%emt 00:01:05]} 43. c5 {[%clk 00:12:59]} {[%emt
00:00:41]} e4 {[%clk 00:02:09]} {[%emt 00:01:21]} 44. Bxe4 {[%clk 00:12:37]}
{[%emt 00:00:51]} h5+ {[%clk 00:02:24]} {[%emt 00:00:16]} 45. Kh4 {[%clk
00:10:47]} {[%emt 00:02:20]} Ne1 {[%clk 00:01:30]} {[%emt 00:01:24]} 46. Qf2
{[%clk 00:07:39]} {[%emt 00:03:37]} Nf3+ {[%clk 00:00:46]} {[%emt 00:01:15]} 47.
Bxf3 {[%clk 00:07:24]} {[%emt 00:02:55]} Rxf3 {[%clk 00:01:04]} {[%emt
00:00:12]} 48. Qxd4 {[%clk 00:06:51]} {[%emt 00:01:03]} Qb5 {[%clk 00:00:43]}
{[%emt 00:00:51]} 49. Kxh5 {[%clk 00:04:33]} {[%emt 00:02:47]} Qf1 {[%clk
00:00:43]} {[%emt 00:00:30]} 50. Kg4 {[%clk 00:04:40]} {[%emt 00:00:23]} Ra3
{[%clk 00:00:36]} {[%emt 00:00:38]} 51. c6 {[%clk 00:03:24]} {[%emt 00:01:45]}
Qa6 {[%clk 00:00:41]} {[%emt 00:00:26]} 52. Qd7 {[%clk 00:00:38]} {[%emt
00:03:17]} Qf1 {[%clk 00:00:39]} {[%emt 00:00:32]} 53. c7 {[%clk 00:00:44]}
{[%emt 00:00:23]} Qf3+ {[%clk 00:00:42]} {[%emt 00:00:27]} 54. Kh4 {[%clk
00:01:11]} {[%emt 00:00:03]} Ra5 {[%clk 00:00:56]} {[%emt 00:00:15]} 55. Qg4+
{[%emt 00:00:46]} Qxg4+ {[%clk 00:00:50]} {[%emt 00:00:02]} 56. Kxg4 {[%clk
00:01:52]} {[%emt 00:00:08]} f5+ {[%clk 00:00:38]} {[%emt 00:00:42]} 57. Kh3
{[%clk 00:02:04]} {[%emt 00:00:17]} Ra6 {[%clk 00:00:34]} {[%emt 00:00:35]} 58.
c8=Q {[%clk 00:02:25]} {[%emt 00:00:09]} {x} 1-0

[Event "Esbjerg Efterår 2021 - Esbjergmesterskabet"]
[Site "Esbjerg, Denmark"]
[Date "2021.10.24"]
[Round "7.10"]
[White "Jensen, Lucas"]
[Black "Christensen, Joel Nødskov"]
[Result "0-1"]
[TimeControl "1.-3. 20 min + 5 sek, 4.-7. 90 min + 30 sek"]
[WhiteElo "1372"]
[BlackElo "1404"]

1. e4 {[%clk 01:30:58]} {[%emt 00:00:02]} c5 {[%clk 01:30:49]} {[%emt
00:00:13]} 2. Nc3 {[%clk 01:30:31]} {[%emt 00:00:56]} Nc6 {[%clk 01:30:59]}
{[%emt 00:00:20]} 3. Bc4 {[%clk 01:29:18]} {[%emt 00:01:43]} e6 {[%clk
01:28:10]} {[%emt 00:03:19]} 4. d3 {[%clk 01:27:33]} {[%emt 00:02:15]} Nge7
{[%clk 01:28:23]} {[%emt 00:00:17]} 5. Qe2 {[%clk 01:25:57]} {[%emt 00:02:06]}
Nd4 {[%clk 01:28:36]} {[%emt 00:00:17]} 6. Qd1 {[%clk 01:24:56]} {[%emt
00:01:30]} d5 {[%clk 01:28:44]} {[%emt 00:00:23]} 7. exd5 {[%clk 01:24:08]}
{[%emt 00:01:17]} exd5 {[%clk 01:28:53]} {[%emt 00:00:21]} 8. Bb3 {[%clk
01:24:06]} {[%emt 00:00:33]} Nxb3 {[%clk 01:28:21]} {[%emt 00:01:02]} 9. axb3
{[%clk 01:24:10]} {[%emt 00:00:25]} d4 {[%clk 01:28:26]} {[%emt 00:00:26]} 10.
Ne4 {[%clk 01:23:14]} {[%emt 00:01:25]} Nc6 {[%clk 01:28:38]} {[%emt 00:00:19]}
11. Nf3 {[%clk 01:22:02]} {[%emt 00:01:42]} Be7 {[%clk 01:28:50]} {[%emt
00:00:18]} 12. O-O {[%clk 01:20:47]} {[%emt 00:01:45]} O-O {[%clk 01:29:07]}
{[%emt 00:00:13]} 13. Re1 {[%emt 00:04:00]} Qd5 {[%clk 01:29:17]} 14. c4 {[%clk
01:15:52]} {[%emt 00:02:14]} dxc3 {[%clk 01:29:00]} {[%emt 00:00:47]} 15. bxc3
{[%clk 01:16:05]} {[%emt 00:00:16]} Bg4 {[%clk 01:28:53]} {[%emt 00:00:38]} 16.
c4 {[%clk 01:15:39]} {[%emt 00:00:57]} Qf5 {[%clk 01:29:09]} {[%emt 00:00:13]}
17. h3 {[%clk 01:12:56]} {[%emt 00:03:14]} Bxf3 {[%clk 01:29:16]} {[%emt
00:00:23]} 18. Qxf3 {[%clk 01:12:44]} {[%emt 00:00:42]} Qxf3 {[%clk 01:29:31]}
{[%emt 00:00:15]} 19. gxf3 {[%clk 01:12:59]} {[%emt 00:00:14]} Nd4 {[%clk
01:29:57]} {[%emt 00:00:04]} 20. Rf1 {[%clk 01:07:09]} {[%emt 00:06:21]} Nxf3+
{[%clk 01:29:34]} {[%emt 00:00:53]} 21. Kg2 {[%clk 01:05:59]} {[%emt 00:01:40]}
Nd4 {[%clk 01:29:47]} {[%emt 00:00:16]} 22. Rb1 {[%clk 01:06:19]} {[%emt
00:00:11]} b6 {[%clk 01:29:57]} {[%emt 00:00:19]} 23. Rg1 {[%clk 01:06:02]}
{[%emt 00:00:48]} Ne2 {[%clk 01:29:51]} {[%emt 00:00:36]} 0-1